[Event "Titled Tuesday Blitz May 23 Early 2023"]
[White "Goltseva, Ekaterina"]
[Black "Avalos Parra, Joao"]
[WhiteFideId "24173770"]
[BlackFideId "3402541"]
[WhiteElo "2114"]
[BlackElo "2173"]
[Result "1-0"]
[Round "08"]
[TimeControl "180+2"]
[Date "2023.05.23"]
[WhiteClock "0:00:08"]
[BlackClock "0:00:11"]

1. e4 {[%clk 0:03:00]}  e5 {[%clk 0:02:59]} 2. Nf3 {[%clk 0:03:00]}  Nc6 {[%clk 0:02:59]} 3. Nc3 {[%clk 0:02:59]}  Nf6 {[%clk 0:02:59]} 4. h3 {[%clk 0:02:59]}  d5 {[%clk 0:02:47]} 5. exd5 {[%clk 0:02:58]}  Nxd5 {[%clk 0:02:45]} 6. Bb5 {[%clk 0:02:57]}  Nxc3 {[%clk 0:02:44]} 7. bxc3 {[%clk 0:02:58]}  Bd6 {[%clk 0:02:40]} 8. O-O {[%clk 0:02:58]}  O-O {[%clk 0:02:40]} 9. d4 {[%clk 0:02:58]}  exd4 {[%clk 0:02:37]} 10. cxd4 {[%clk 0:02:59]}  h6 {[%clk 0:02:37]} 11. Rb1 {[%clk 0:02:59]}  Bf5 {[%clk 0:02:22]} 12. Rb3 {[%clk 0:02:41]}  Ne7 {[%clk 0:02:13]} 13. Ne5 {[%clk 0:02:28]}  Ng6 {[%clk 0:02:12]} 14. Bd3 {[%clk 0:02:06]}  Bxd3 {[%clk 0:01:58]} 15. Rxd3 {[%clk 0:01:54]}  Qf6 {[%clk 0:01:40]} 16. Nd7 {[%clk 0:01:46]}  Qe6 {[%clk 0:01:34]} 17. Nxf8 {[%clk 0:01:45]}  Rxf8 {[%clk 0:01:35]} 18. f4 {[%clk 0:01:38]}  Qxa2 {[%clk 0:01:34]} 19. f5 {[%clk 0:01:37]}  Ne7 {[%clk 0:01:30]} 20. f6 {[%clk 0:01:34]}  Ng6 {[%clk 0:01:30]} 21. fxg7 {[%clk 0:01:27]}  Kxg7 {[%clk 0:01:31]} 22. Qd2 {[%clk 0:01:23]}  Rh8 {[%clk 0:01:27]} 23. Rdf3 {[%clk 0:01:23]}  Qd5 {[%clk 0:01:10]} 24. Rxf7+ {[%clk 0:01:08]}  Qxf7 {[%clk 0:01:11]} 25. Rxf7+ {[%clk 0:01:08]}  Kxf7 {[%clk 0:01:12]} 26. Qf2+ {[%clk 0:01:04]}  Kg7 {[%clk 0:01:10]} 27. c4 {[%clk 0:00:50]}  Rf8 {[%clk 0:01:09]} 28. Qb2 {[%clk 0:00:46]}  Bg3 {[%clk 0:01:05]} 29. Qxb7 {[%clk 0:00:18]}  Re8 {[%clk 0:01:00]} 30. Bd2 {[%clk 0:00:18]}  h5 {[%clk 0:00:48]} 31. Qf3 {[%clk 0:00:11]}  h4 {[%clk 0:00:43]} 32. d5 {[%clk 0:00:09]}  Ne5 {[%clk 0:00:25]} 33. Qh5 {[%clk 0:00:06]}  Rh8 {[%clk 0:00:17]} 34. Qg5+ {[%clk 0:00:06]}  Kf7 {[%clk 0:00:18]} 35. c5 {[%clk 0:00:04]}  Rg8 {[%clk 0:00:18]} 36. Qf5+ {[%clk 0:00:04]}  Ke7 {[%clk 0:00:18]} 37. Bf4 {[%clk 0:00:03]}  Bxf4 {[%clk 0:00:16]} 38. Qxf4 {[%clk 0:00:04]}  Ng6 {[%clk 0:00:15]} 39. Qe4+ {[%clk 0:00:04]}  Kf6 {[%clk 0:00:15]} 40. Qe6+ {[%clk 0:00:04]}  Kg7 {[%clk 0:00:15]} 41. d6 {[%clk 0:00:04]}  cxd6 {[%clk 0:00:15]} 42. cxd6 {[%clk 0:00:05]}  Rb8 {[%clk 0:00:15]} 43. d7 {[%clk 0:00:04]}  Rb1+ {[%clk 0:00:14]} 44. Kh2 {[%clk 0:00:03]}  Rd1 {[%clk 0:00:15]} 45. Qe8 {[%clk 0:00:02]}  a5 {[%clk 0:00:10]} 46. d8=Q {[%clk 0:00:03]}  Rxd8 {[%clk 0:00:10]} 47. Qxd8 {[%clk 0:00:04]}  a4 {[%clk 0:00:11]} 48. Qd4+ {[%clk 0:00:04]}  Kh6 {[%clk 0:00:11]} 49. Qxa4 {[%clk 0:00:05]}  Kg5 {[%clk 0:00:11]} 50. Qg4+ {[%clk 0:00:06]}  Kh6 {[%clk 0:00:12]} 51. g3 {[%clk 0:00:06]}  hxg3+ {[%clk 0:00:12]} 52. Kxg3 {[%clk 0:00:07]}  Kh7 {[%clk 0:00:12]} 53. h4 {[%clk 0:00:08]}  Ne5 {[%clk 0:00:12]} 54. Qf5+ {[%clk 0:00:08]}  Ng6 {[%clk 0:00:11]} 55. h5 {[%clk 0:00:08]} 1-0


[Site "https://www.chess.com"]

[Event "Titled Tuesday Blitz May 23 Early 2023"]
[White "Tanmay Jain"]
[Black "Ovezdurdyyeva, Jemal"]
[WhiteFideId "45015481"]
[BlackFideId "14001888"]
[WhiteElo "2032"]
[BlackElo "2043"]
[Result "1-0"]
[Round "08"]
[TimeControl "180+2"]
[Date "2023.05.23"]
[WhiteClock "0:00:02"]
[BlackClock "0:00:00"]

1. e4 {[%clk 0:02:58]}  d6 {[%clk 0:02:58]} 2. g3 {[%clk 0:02:56]}  Nf6 {[%clk 0:02:58]} 3. Bg2 {[%clk 0:02:56]}  c5 {[%clk 0:02:58]} 4. Nc3 {[%clk 0:02:56]}  Nc6 {[%clk 0:02:58]} 5. Nge2 {[%clk 0:02:56]}  g6 {[%clk 0:02:58]} 6. d4 {[%clk 0:02:55]}  cxd4 {[%clk 0:02:57]} 7. Nxd4 {[%clk 0:02:56]}  Bg7 {[%clk 0:02:57]} 8. O-O {[%clk 0:02:55]}  O-O {[%clk 0:02:57]} 9. h3 {[%clk 0:02:55]}  Bd7 {[%clk 0:02:54]} 10. Be3 {[%clk 0:02:54]}  Ne5 {[%clk 0:02:51]} 11. b3 {[%clk 0:02:41]}  Rc8 {[%clk 0:02:49]} 12. Nce2 {[%clk 0:02:39]}  Nc6 {[%clk 0:02:40]} 13. c4 {[%clk 0:02:34]}  a6 {[%clk 0:02:37]} 14. Rc1 {[%clk 0:02:33]}  Qa5 {[%clk 0:02:20]} 15. Nc3 {[%clk 0:02:22]}  Qh5 {[%clk 0:02:01]} 16. Nxc6 {[%clk 0:01:42]}  Bxc6 {[%clk 0:01:59]} 17. Nd5 {[%clk 0:01:26]}  Rfe8 {[%clk 0:01:47]} 18. Nxf6+ {[%clk 0:01:21]}  Bxf6 {[%clk 0:01:42]} 19. Qxh5 {[%clk 0:01:21]}  gxh5 {[%clk 0:01:42]} 20. Rcd1 {[%clk 0:01:18]}  b5 {[%clk 0:01:30]} 21. Rc1 {[%clk 0:01:12]}  bxc4 {[%clk 0:01:29]} 22. Rxc4 {[%clk 0:00:58]}  Bb5 {[%clk 0:01:28]} 23. Rxc8 {[%clk 0:00:58]}  Rxc8 {[%clk 0:01:29]} 24. Rd1 {[%clk 0:00:53]}  Rc2 {[%clk 0:01:22]} 25. Rd2 {[%clk 0:00:52]}  Rxd2 {[%clk 0:01:15]} 26. Bxd2 {[%clk 0:00:52]}  Bd3 {[%clk 0:01:15]} 27. Bf1 {[%clk 0:00:34]}  Bxf1 {[%clk 0:01:14]} 28. Kxf1 {[%clk 0:00:34]}  Kf8 {[%clk 0:01:14]} 29. Ke2 {[%clk 0:00:34]}  Ke8 {[%clk 0:01:15]} 30. Kd3 {[%clk 0:00:34]}  Kd7 {[%clk 0:01:15]} 31. Bc3 {[%clk 0:00:33]}  Bg5 {[%clk 0:01:11]} 32. Kc4 {[%clk 0:00:26]}  Kc6 {[%clk 0:01:10]} 33. b4 {[%clk 0:00:26]}  e6 {[%clk 0:01:02]} 34. a4 {[%clk 0:00:23]}  d5+ {[%clk 0:01:02]} 35. exd5+ {[%clk 0:00:23]}  exd5+ {[%clk 0:01:02]} 36. Kd3 {[%clk 0:00:23]}  Bd8 {[%clk 0:00:57]} 37. Ke3 {[%clk 0:00:20]}  Bb6+ {[%clk 0:00:37]} 38. Bd4 {[%clk 0:00:20]}  Bc7 {[%clk 0:00:38]} 39. Bc5 {[%clk 0:00:18]}  a5 {[%clk 0:00:32]} 40. Kd3 {[%clk 0:00:17]}  axb4 {[%clk 0:00:30]} 41. Bxb4 {[%clk 0:00:18]}  Bb6 {[%clk 0:00:30]} 42. Be1 {[%clk 0:00:16]}  Ba7 {[%clk 0:00:29]} 43. f4 {[%clk 0:00:15]}  Kd7 {[%clk 0:00:26]} 44. Bc3 {[%clk 0:00:12]}  Kc6 {[%clk 0:00:21]} 45. g4 {[%clk 0:00:13]}  hxg4 {[%clk 0:00:20]} 46. hxg4 {[%clk 0:00:14]}  Bb8 {[%clk 0:00:20]} 47. Be5 {[%clk 0:00:13]}  Ba7 {[%clk 0:00:20]} 48. Bd4 {[%clk 0:00:12]}  Bb8 {[%clk 0:00:19]} 49. Ke3 {[%clk 0:00:13]}  Bc7 {[%clk 0:00:18]} 50. Kf3 {[%clk 0:00:12]}  Bd8 {[%clk 0:00:17]} 51. f5 {[%clk 0:00:09]}  Kd6 {[%clk 0:00:16]} 52. Kf4 {[%clk 0:00:09]}  Kc6 {[%clk 0:00:17]} 53. Ke5 {[%clk 0:00:07]}  Bh4 {[%clk 0:00:10]} 54. f6 {[%clk 0:00:05]}  Bg3+ {[%clk 0:00:04]} 55. Kf5 {[%clk 0:00:05]}  Be1 {[%clk 0:00:03]} 56. Kg5 {[%clk 0:00:04]}  Bd2+ {[%clk 0:00:03]} 57. Kh5 {[%clk 0:00:04]}  Kd6 {[%clk 0:00:03]} 58. g5 {[%clk 0:00:04]}  Ke6 {[%clk 0:00:03]} 59. Kh6 {[%clk 0:00:01]}  Kf5 {[%clk 0:00:00]} 60. Kxh7 {[%clk 0:00:02]} 1-0


[Site "https://www.chess.com"]

[Event "Titled Tuesday Blitz May 23 Early 2023"]
[White "Estrada Nieto, Julian"]
[Black "Smiechu"]
[WhiteFideId "5101018"]
[WhiteElo "2161"]
[BlackElo "2324"]
[Result "1-0"]
[Round "08"]
[TimeControl "180+2"]
[Date "2023.05.23"]
[WhiteClock "0:00:12"]
[BlackClock "0:00:01"]

1. e4 {[%clk 0:03:00]}  c5 {[%clk 0:02:59]} 2. Nf3 {[%clk 0:03:01]}  g6 {[%clk 0:03:00]} 3. c3 {[%clk 0:02:59]}  Bg7 {[%clk 0:02:59]} 4. d4 {[%clk 0:02:59]}  cxd4 {[%clk 0:03:00]} 5. cxd4 {[%clk 0:03:00]}  d5 {[%clk 0:03:00]} 6. e5 {[%clk 0:03:00]}  Nh6 {[%clk 0:03:01]} 7. Bb5+ {[%clk 0:03:00]}  Bd7 {[%clk 0:03:00]} 8. Bxd7+ {[%clk 0:02:59]}  Qxd7 {[%clk 0:03:01]} 9. O-O {[%clk 0:03:00]}  O-O {[%clk 0:03:00]} 10. Nc3 {[%clk 0:03:00]}  Nc6 {[%clk 0:02:59]} 11. Re1 {[%clk 0:02:59]}  e6 {[%clk 0:03:00]} 12. Bf4 {[%clk 0:02:38]}  Nf5 {[%clk 0:02:59]} 13. Qd2 {[%clk 0:02:37]}  f6 {[%clk 0:02:56]} 14. exf6 {[%clk 0:02:34]}  Bxf6 {[%clk 0:02:56]} 15. Ne5 {[%clk 0:02:34]}  Bxe5 {[%clk 0:02:27]} 16. Bxe5 {[%clk 0:02:34]}  Nxe5 {[%clk 0:02:27]} 17. Rxe5 {[%clk 0:02:34]}  Nd6 {[%clk 0:02:26]} 18. Qe2 {[%clk 0:02:27]}  Rf6 {[%clk 0:02:21]} 19. Re1 {[%clk 0:02:25]}  Raf8 {[%clk 0:01:45]} 20. f3 {[%clk 0:02:07]}  Nc4 {[%clk 0:01:35]} 21. Rxe6 {[%clk 0:02:02]}  Rxe6 {[%clk 0:01:35]} 22. Qxe6+ {[%clk 0:02:02]}  Qxe6 {[%clk 0:01:35]} 23. Rxe6 {[%clk 0:02:02]}  Nxb2 {[%clk 0:01:36]} 24. Nxd5 {[%clk 0:01:59]}  Rd8 {[%clk 0:01:35]} 25. Ne3 {[%clk 0:01:42]}  Rxd4 {[%clk 0:01:26]} 26. Re7 {[%clk 0:01:42]}  Nd1 {[%clk 0:01:17]} 27. Ng4 {[%clk 0:01:36]}  Rb4 {[%clk 0:01:05]} 28. Nf6+ {[%clk 0:01:28]}  Kf8 {[%clk 0:01:05]} 29. Rxh7 {[%clk 0:01:27]}  Rb1 {[%clk 0:01:02]} 30. Kf1 {[%clk 0:01:20]}  Nc3+ {[%clk 0:00:59]} 31. Kf2 {[%clk 0:01:20]}  Nxa2 {[%clk 0:00:59]} 32. h4 {[%clk 0:01:04]}  a5 {[%clk 0:00:56]} 33. g4 {[%clk 0:01:03]}  a4 {[%clk 0:00:57]} 34. g5 {[%clk 0:01:03]}  a3 {[%clk 0:00:54]} 35. Nd7+ {[%clk 0:01:02]}  Ke8 {[%clk 0:00:53]} 36. Nf6+ {[%clk 0:01:02]}  Kd8 {[%clk 0:00:52]} 37. Rh8+ {[%clk 0:01:00]}  Kc7 {[%clk 0:00:51]} 38. Ra8 {[%clk 0:01:00]}  Rb3 {[%clk 0:00:43]} 39. h5 {[%clk 0:00:58]}  Rb5 {[%clk 0:00:23]} 40. h6 {[%clk 0:00:48]}  Rb4 {[%clk 0:00:10]} 41. Kg3 {[%clk 0:00:36]}  Rb1 {[%clk 0:00:09]} 42. h7 {[%clk 0:00:35]}  Rh1 {[%clk 0:00:09]} 43. h8=Q {[%clk 0:00:32]}  Rxh8 {[%clk 0:00:09]} 44. Rxh8 {[%clk 0:00:33]}  Nb4 {[%clk 0:00:08]} 45. Rh1 {[%clk 0:00:19]}  a2 {[%clk 0:00:06]} 46. f4 {[%clk 0:00:17]}  Nc2 {[%clk 0:00:04]} 47. f5 {[%clk 0:00:14]}  Nd4 {[%clk 0:00:01]} 48. fxg6 {[%clk 0:00:13]}  Nf5+ {[%clk 0:00:02]} 49. Kf4 {[%clk 0:00:13]}  Ng3 {[%clk 0:00:02]} 50. Ra1 {[%clk 0:00:13]}  Nh5+ {[%clk 0:00:01]} 51. Nxh5 {[%clk 0:00:12]} 1-0


[Site "https://www.chess.com"]

[Event "Titled Tuesday Blitz May 23 Early 2023"]
[White "Goncalves, Davi Sulzbacher"]
[Black "Buscar, Michael"]
[WhiteFideId "2154510"]
[BlackFideId "2603616"]
[WhiteElo "2182"]
[BlackElo "2010"]
[Result "1-0"]
[Round "08"]
[TimeControl "180+2"]
[Date "2023.05.23"]
[WhiteClock "0:00:09"]
[BlackClock "0:00:04"]

1. Nf3 {[%clk 0:03:00]}  d5 {[%clk 0:02:52]} 2. d4 {[%clk 0:02:54]}  Nc6 {[%clk 0:02:51]} 3. Bf4 {[%clk 0:02:54]}  Bf5 {[%clk 0:02:51]} 4. e3 {[%clk 0:02:54]}  Nb4 {[%clk 0:02:49]} 5. Na3 {[%clk 0:02:49]}  e6 {[%clk 0:02:47]} 6. c3 {[%clk 0:02:43]}  Nc6 {[%clk 0:02:46]} 7. Nb5 {[%clk 0:02:02]}  Rc8 {[%clk 0:02:38]} 8. Qa4 {[%clk 0:02:03]}  Qd7 {[%clk 0:02:27]} 9. Nxa7 {[%clk 0:00:31]}  Ra8 {[%clk 0:02:19]} 10. Bb5 {[%clk 0:00:30]}  Rxa7 {[%clk 0:02:14]} 11. Qxa7 {[%clk 0:00:31]}  Nxa7 {[%clk 0:02:14]} 12. Bxd7+ {[%clk 0:00:32]}  Kxd7 {[%clk 0:02:14]} 13. Ne5+ {[%clk 0:00:32]}  Ke8 {[%clk 0:02:15]} 14. g4 {[%clk 0:00:33]}  Bg6 {[%clk 0:02:12]} 15. Nxg6 {[%clk 0:00:33]}  hxg6 {[%clk 0:02:11]} 16. Bxc7 {[%clk 0:00:34]}  Nf6 {[%clk 0:02:09]} 17. f3 {[%clk 0:00:33]}  Kd7 {[%clk 0:01:59]} 18. Bg3 {[%clk 0:00:31]}  Bd6 {[%clk 0:01:52]} 19. Kd2 {[%clk 0:00:31]}  Nc6 {[%clk 0:01:46]} 20. b4 {[%clk 0:00:25]}  Ra8 {[%clk 0:01:40]} 21. a4 {[%clk 0:00:25]}  Ne8 {[%clk 0:01:36]} 22. Bf2 {[%clk 0:00:19]}  Be7 {[%clk 0:01:31]} 23. e4 {[%clk 0:00:18]}  Nd6 {[%clk 0:01:25]} 24. Kd3 {[%clk 0:00:19]}  Nc4 {[%clk 0:01:23]} 25. a5 {[%clk 0:00:17]}  Na7 {[%clk 0:01:13]} 26. h4 {[%clk 0:00:10]}  Nb5 {[%clk 0:01:08]} 27. h5 {[%clk 0:00:10]}  gxh5 {[%clk 0:00:58]} 28. Rxh5 {[%clk 0:00:10]}  Rc8 {[%clk 0:00:33]} 29. exd5 {[%clk 0:00:09]}  Ncd6 {[%clk 0:00:28]} 30. dxe6+ {[%clk 0:00:09]}  Kxe6 {[%clk 0:00:28]} 31. Rc1 {[%clk 0:00:07]}  g6 {[%clk 0:00:24]} 32. Rh7 {[%clk 0:00:07]}  Na3 {[%clk 0:00:21]} 33. Re1+ {[%clk 0:00:06]}  Kf6 {[%clk 0:00:20]} 34. Bh4+ {[%clk 0:00:06]}  g5 {[%clk 0:00:21]} 35. Bxg5+ {[%clk 0:00:06]}  Kxg5 {[%clk 0:00:21]} 36. Rxe7 {[%clk 0:00:07]}  Nab5 {[%clk 0:00:20]} 37. Re5+ {[%clk 0:00:07]}  Kf4 {[%clk 0:00:19]} 38. Rc5 {[%clk 0:00:07]}  Re8 {[%clk 0:00:16]} 39. Rxf7+ {[%clk 0:00:06]}  Nxf7 {[%clk 0:00:15]} 40. Rf5+ {[%clk 0:00:07]}  Kg3 {[%clk 0:00:15]} 41. Rxf7 {[%clk 0:00:07]}  Nd6 {[%clk 0:00:15]} 42. Rf6 {[%clk 0:00:07]}  Rd8 {[%clk 0:00:15]} 43. c4 {[%clk 0:00:07]}  Ne8 {[%clk 0:00:14]} 44. Re6 {[%clk 0:00:07]}  Nc7 {[%clk 0:00:13]} 45. Re7 {[%clk 0:00:07]}  Na6 {[%clk 0:00:13]} 46. Kc3 {[%clk 0:00:06]}  Kxf3 {[%clk 0:00:13]} 47. b5 {[%clk 0:00:06]}  Nb8 {[%clk 0:00:13]} 48. g5 {[%clk 0:00:07]}  Kf4 {[%clk 0:00:13]} 49. g6 {[%clk 0:00:07]}  Nd7 {[%clk 0:00:12]} 50. g7 {[%clk 0:00:07]}  Nf6 {[%clk 0:00:13]} 51. Rxb7 {[%clk 0:00:08]}  Ne4+ {[%clk 0:00:13]} 52. Kb4 {[%clk 0:00:07]}  Kf5 {[%clk 0:00:11]} 53. d5 {[%clk 0:00:08]}  Kf6 {[%clk 0:00:12]} 54. a6 {[%clk 0:00:08]}  Nd6 {[%clk 0:00:11]} 55. Rb6 {[%clk 0:00:06]}  Kxg7 {[%clk 0:00:11]} 56. c5 {[%clk 0:00:07]}  Ne4 {[%clk 0:00:09]} 57. d6 {[%clk 0:00:07]}  Kf7 {[%clk 0:00:08]} 58. a7 {[%clk 0:00:07]}  Ra8 {[%clk 0:00:08]} 59. Rb7+ {[%clk 0:00:07]}  Ke6 {[%clk 0:00:08]} 60. b6 {[%clk 0:00:08]}  Nf6 {[%clk 0:00:07]} 61. Rb8 {[%clk 0:00:08]}  Rxb8 {[%clk 0:00:07]} 62. axb8=Q {[%clk 0:00:09]}  Nd5+ {[%clk 0:00:04]} 63. Kb3 {[%clk 0:00:09]} 1-0


[Site "https://www.chess.com"]

[Event "Titled Tuesday Blitz May 23 Early 2023"]
[White "Zavortink, Matt"]
[Black "Goldin, Roman"]
[WhiteFideId "2034263"]
[BlackFideId "2803860"]
[WhiteElo "2465"]
[BlackElo "2312"]
[Result "0-1"]
[Round "08"]
[TimeControl "180+2"]
[Date "2023.05.23"]
[WhiteClock "0:00:00"]
[BlackClock "0:00:05"]

1. Nf3 {[%clk 0:03:00]}  Nf6 {[%clk 0:02:59]} 2. g3 {[%clk 0:03:00]}  b5 {[%clk 0:02:58]} 3. Na3 {[%clk 0:02:59]}  a6 {[%clk 0:02:54]} 4. c4 {[%clk 0:02:59]}  b4 {[%clk 0:02:53]} 5. Nc2 {[%clk 0:02:59]}  e6 {[%clk 0:02:52]} 6. Bg2 {[%clk 0:02:56]}  Bb7 {[%clk 0:02:53]} 7. O-O {[%clk 0:02:54]}  c5 {[%clk 0:02:53]} 8. d4 {[%clk 0:02:53]}  cxd4 {[%clk 0:02:53]} 9. Ncxd4 {[%clk 0:02:52]}  Be7 {[%clk 0:02:47]} 10. b3 {[%clk 0:02:49]}  O-O {[%clk 0:02:46]} 11. Bb2 {[%clk 0:02:49]}  d6 {[%clk 0:02:46]} 12. Qc2 {[%clk 0:02:33]}  g6 {[%clk 0:02:44]} 13. a3 {[%clk 0:02:31]}  e5 {[%clk 0:02:43]} 14. axb4 {[%clk 0:02:22]}  exd4 {[%clk 0:02:42]} 15. Bxd4 {[%clk 0:02:23]}  Nc6 {[%clk 0:02:33]} 16. Bc3 {[%clk 0:02:23]}  Qc7 {[%clk 0:02:30]} 17. Qc1 {[%clk 0:02:16]}  Ne5 {[%clk 0:02:29]} 18. Qh6 {[%clk 0:02:08]}  Ne4 {[%clk 0:02:13]} 19. Bb2 {[%clk 0:02:03]}  Bf6 {[%clk 0:02:09]} 20. Nxe5 {[%clk 0:01:48]}  Bxe5 {[%clk 0:01:49]} 21. Bxe5 {[%clk 0:01:44]}  dxe5 {[%clk 0:01:49]} 22. h4 {[%clk 0:01:38]}  Nf6 {[%clk 0:01:26]} 23. Bh3 {[%clk 0:01:31]}  Qc6 {[%clk 0:01:22]} 24. f3 {[%clk 0:01:31]}  Qb6+ {[%clk 0:01:21]} 25. Kh2 {[%clk 0:01:29]}  Qxb4 {[%clk 0:01:21]} 26. g4 {[%clk 0:01:24]}  Rad8 {[%clk 0:01:11]} 27. h5 {[%clk 0:01:21]}  Qd2 {[%clk 0:01:07]} 28. Qxd2 {[%clk 0:01:15]}  Rxd2 {[%clk 0:01:06]} 29. Rf2 {[%clk 0:01:15]}  e4 {[%clk 0:00:59]} 30. hxg6 {[%clk 0:01:09]}  hxg6 {[%clk 0:00:53]} 31. Kg1 {[%clk 0:01:07]}  Rfd8 {[%clk 0:00:47]} 32. fxe4 {[%clk 0:00:54]}  Nxe4 {[%clk 0:00:45]} 33. Rh2 {[%clk 0:00:48]}  Ng5 {[%clk 0:00:44]} 34. Bg2 {[%clk 0:00:47]}  Rd1+ {[%clk 0:00:33]} 35. Rxd1 {[%clk 0:00:46]}  Rxd1+ {[%clk 0:00:32]} 36. Kf2 {[%clk 0:00:47]}  Bxg2 {[%clk 0:00:31]} 37. Rxg2 {[%clk 0:00:45]}  Rb1 {[%clk 0:00:31]} 38. Ke3 {[%clk 0:00:42]}  Rxb3+ {[%clk 0:00:30]} 39. Kd4 {[%clk 0:00:43]}  Ne6+ {[%clk 0:00:26]} 40. Ke4 {[%clk 0:00:40]}  Rc3 {[%clk 0:00:25]} 41. e3 {[%clk 0:00:36]}  Rxc4+ {[%clk 0:00:25]} 42. Kd3 {[%clk 0:00:34]}  Rc6 {[%clk 0:00:23]} 43. Ra2 {[%clk 0:00:30]}  Kg7 {[%clk 0:00:24]} 44. Ke4 {[%clk 0:00:29]}  Rc1 {[%clk 0:00:22]} 45. Kf3 {[%clk 0:00:26]}  Nc5 {[%clk 0:00:21]} 46. Ra5 {[%clk 0:00:24]}  Rc4 {[%clk 0:00:20]} 47. Kg3 {[%clk 0:00:23]}  Kf6 {[%clk 0:00:19]} 48. Kf3 {[%clk 0:00:23]}  Ke6 {[%clk 0:00:18]} 49. Kg3 {[%clk 0:00:20]}  Kd6 {[%clk 0:00:19]} 50. Kh4 {[%clk 0:00:21]}  Kc6 {[%clk 0:00:17]} 51. Kg5 {[%clk 0:00:21]}  Kb6 {[%clk 0:00:18]} 52. Ra1 {[%clk 0:00:21]}  Ne4+ {[%clk 0:00:17]} 53. Kh6 {[%clk 0:00:20]}  Nc3 {[%clk 0:00:17]} 54. g5 {[%clk 0:00:19]}  Rc5 {[%clk 0:00:17]} 55. Kg7 {[%clk 0:00:19]}  Rxg5 {[%clk 0:00:17]} 56. Kxf7 {[%clk 0:00:19]}  Rg3 {[%clk 0:00:17]} 57. Ra3 {[%clk 0:00:16]}  Nd5 {[%clk 0:00:14]} 58. Rb3+ {[%clk 0:00:13]}  Kc5 {[%clk 0:00:14]} 59. Ra3 {[%clk 0:00:13]}  Nb4 {[%clk 0:00:13]} 60. Ra5+ {[%clk 0:00:10]}  Kb6 {[%clk 0:00:12]} 61. Re5 {[%clk 0:00:09]}  a5 {[%clk 0:00:12]} 62. Re6+ {[%clk 0:00:09]}  Kb5 {[%clk 0:00:12]} 63. Re5+ {[%clk 0:00:05]}  Kb6 {[%clk 0:00:12]} 64. Re6+ {[%clk 0:00:05]}  Nc6 {[%clk 0:00:13]} 65. Re4 {[%clk 0:00:04]}  Kb5 {[%clk 0:00:12]} 66. Ke6 {[%clk 0:00:04]}  a4 {[%clk 0:00:11]} 67. Kd5 {[%clk 0:00:05]}  Nb4+ {[%clk 0:00:11]} 68. Kd4 {[%clk 0:00:05]}  Rg5 {[%clk 0:00:09]} 69. Kc3 {[%clk 0:00:04]}  Rc5+ {[%clk 0:00:08]} 70. Kb2 {[%clk 0:00:05]}  Rc2+ {[%clk 0:00:08]} 71. Kb1 {[%clk 0:00:05]}  Rc4 {[%clk 0:00:07]} 72. Re5+ {[%clk 0:00:05]}  Rc5 {[%clk 0:00:08]} 73. Re4 {[%clk 0:00:05]}  Nd5 {[%clk 0:00:07]} 74. Rg4 {[%clk 0:00:05]}  Nxe3 {[%clk 0:00:06]} 75. Rxg6 {[%clk 0:00:05]}  Kb4 {[%clk 0:00:06]} 76. Re6 {[%clk 0:00:05]}  Nc4 {[%clk 0:00:06]} 77. Re4 {[%clk 0:00:04]}  Kb3 {[%clk 0:00:06]} 78. Rh4 {[%clk 0:00:04]}  a3 {[%clk 0:00:06]} 79. Rh3+ {[%clk 0:00:04]}  Kb4 {[%clk 0:00:06]} 80. Ka2 {[%clk 0:00:04]}  Rd5 {[%clk 0:00:06]} 81. Rb3+ {[%clk 0:00:04]}  Ka4 {[%clk 0:00:06]} 82. Rc3 {[%clk 0:00:04]}  Rd2+ {[%clk 0:00:06]} 83. Ka1 {[%clk 0:00:04]}  Kb4 {[%clk 0:00:06]} 84. Rh3 {[%clk 0:00:03]}  Re2 {[%clk 0:00:06]} 85. Rg3 {[%clk 0:00:02]}  Ne3 {[%clk 0:00:06]} 86. Rh3 {[%clk 0:00:02]}  Kb3 {[%clk 0:00:05]} 87. Rh1 {[%clk 0:00:02]}  Nc2+ {[%clk 0:00:05]} 88. Kb1 {[%clk 0:00:00]}  a2+ {[%clk 0:00:05]} 0-1


[Site "https://www.chess.com"]

[Event "Titled Tuesday Blitz May 23 Early 2023"]
[White "Pasti, Aron"]
[Black "Lesbekova, Assel"]
[WhiteFideId "785857"]
[BlackFideId "13713248"]
[WhiteElo "2173"]
[BlackElo "1805"]
[Result "0-1"]
[Round "08"]
[TimeControl "180+2"]
[Date "2023.05.23"]
[WhiteClock "0:00:14"]
[BlackClock "0:00:12"]

1. e4 {[%clk 0:03:00]}  c5 {[%clk 0:02:56]} 2. d4 {[%clk 0:02:59]}  cxd4 {[%clk 0:02:51]} 3. c3 {[%clk 0:02:59]}  d5 {[%clk 0:02:49]} 4. Qxd4 {[%clk 0:02:44]}  dxe4 {[%clk 0:02:45]} 5. Bb5+ {[%clk 0:02:41]}  Bd7 {[%clk 0:02:41]} 6. Bxd7+ {[%clk 0:02:40]}  Qxd7 {[%clk 0:02:42]} 7. Qxe4 {[%clk 0:02:40]}  Nf6 {[%clk 0:02:42]} 8. Qe2 {[%clk 0:02:39]}  e6 {[%clk 0:02:38]} 9. Nf3 {[%clk 0:02:39]}  Bc5 {[%clk 0:02:32]} 10. O-O {[%clk 0:02:38]}  O-O {[%clk 0:02:32]} 11. Bg5 {[%clk 0:02:36]}  Be7 {[%clk 0:02:20]} 12. Rd1 {[%clk 0:02:34]}  Qc7 {[%clk 0:02:19]} 13. Nbd2 {[%clk 0:02:31]}  Nc6 {[%clk 0:02:16]} 14. Rac1 {[%clk 0:02:23]}  Rfd8 {[%clk 0:02:13]} 15. Nd4 {[%clk 0:02:05]}  Nxd4 {[%clk 0:02:01]} 16. cxd4 {[%clk 0:02:06]}  Qa5 {[%clk 0:01:56]} 17. Ne4 {[%clk 0:01:51]}  Qf5 {[%clk 0:01:40]} 18. Bxf6 {[%clk 0:01:41]}  Bxf6 {[%clk 0:01:40]} 19. Nxf6+ {[%clk 0:01:41]}  Qxf6 {[%clk 0:01:39]} 20. Qe4 {[%clk 0:01:40]}  b6 {[%clk 0:01:27]} 21. Rc7 {[%clk 0:01:31]}  h6 {[%clk 0:01:18]} 22. h3 {[%clk 0:01:26]}  Rd5 {[%clk 0:01:15]} 23. Rd7 {[%clk 0:01:15]}  Rd8 {[%clk 0:00:56]} 24. Rxd5 {[%clk 0:01:11]}  Rxd5 {[%clk 0:00:51]} 25. Rd3 {[%clk 0:00:52]}  g6 {[%clk 0:00:43]} 26. Qe3 {[%clk 0:00:47]}  Kh7 {[%clk 0:00:40]} 27. Ra3 {[%clk 0:00:40]}  a5 {[%clk 0:00:28]} 28. Rd3 {[%clk 0:00:35]}  b5 {[%clk 0:00:26]} 29. Qd2 {[%clk 0:00:34]}  b4 {[%clk 0:00:26]} 30. Kf1 {[%clk 0:00:31]}  Qe7 {[%clk 0:00:20]} 31. Qc2 {[%clk 0:00:30]}  Qd6 {[%clk 0:00:18]} 32. Qc4 {[%clk 0:00:28]}  Qh2 {[%clk 0:00:17]} 33. Rf3 {[%clk 0:00:22]}  Qh1+ {[%clk 0:00:17]} 34. Ke2 {[%clk 0:00:22]}  Rf5 {[%clk 0:00:13]} 35. Rxf5 {[%clk 0:00:20]}  gxf5 {[%clk 0:00:14]} 36. Qc7 {[%clk 0:00:20]}  Kg6 {[%clk 0:00:14]} 37. Qg3+ {[%clk 0:00:19]}  Kh7 {[%clk 0:00:13]} 38. Kf3 {[%clk 0:00:16]}  Qd1+ {[%clk 0:00:13]} 39. Kf4 {[%clk 0:00:13]}  Qxd4+ {[%clk 0:00:12]} 40. Kf3 {[%clk 0:00:14]}  Qe4# {[%clk 0:00:12]} 0-1


[Site "https://www.chess.com"]